bitfinex/quotes_BTCUSD_20250208
["timestamp","ask_amount","ask_price","bid_price","bid_amount"]
[1738999248834,0.00030301,95924.0,95923.0,0.55498545]
[1738999249493,0.00030301,95924.0,95923.0,0.57445993]
[1738999251357,0.00030301,95924.0,95923.0,0.55145993]
[1738999251568,0.00030301,95924.0,95923.0,0.37375628]
[1738999252742,0.00030301,95924.0,95923.0,0.32795628]
[1738999253107,0.00033338,95929.0,95924.0,0.15]
[1738999253253,0.00033338,95929.0,95928.0,0.306367]
[1738999255080,0.00133338,95929.0,95928.0,0.306367]
[1738999255623,0.00033338,95929.0,95928.0,0.306367]
[1738999255823,0.00033338,95929.0,95928.0,0.308367]
[1738999256031,0.00233338,95929.0,95928.0,0.309367]
[1738999258341,0.00233338,95929.0,95928.0,0.41187065]
[1738999258760,0.00233338,95929.0,95928.0,0.49427065]
[1738999259523,0.00233338,95929.0,95923.0,0.0001068]
[1738999259524,0.08277161,95925.0,95923.0,0.0001068]
[1738999259724,0.23020698,95924.0,95923.0,0.0001068]
[1738999259924,0.39710724,95924.0,95923.0,0.0001068]
[1738999262467,0.41410724,95924.0,95923.0,0.0001068]
[1738999263302,0.40610724,95924.0,95923.0,0.0001068]
[1738999264066,0.39710724,95924.0,95923.0,0.0001068]
[1738999264401,0.40610724,95924.0,95923.0,0.0001068]
[1738999264603,0.41410724,95924.0,95923.0,0.0001068]
[1738999264928,0.39710724,95924.0,95923.0,0.0001068]
[1738999265392,0.40610724,95924.0,95923.0,0.0001068]
[1738999265602,0.73404149,95924.0,95923.0,0.0001068]
[1738999265870,0.7447757,95924.0,95923.0,0.0001068]
[1738999266066,0.74499998,95924.0,95923.0,0.0001068]
[1738999266697,0.58862698,95924.0,95923.0,0.0001068]
[1738999267106,0.74499998,95924.0,95923.0,0.0001068]
[1738999267705,0.72799998,95924.0,95923.0,0.0001068]
[1738999268046,0.74399998,95924.0,95923.0,0.0001068]
[1738999268250,0.73699998,95924.0,95923.0,0.0001068]
[1738999268496,0.72799998,95924.0,95923.0,0.0001068]
[1738999268646,0.73399998,95924.0,95923.0,0.0001068]
[1738999268850,0.74199998,95924.0,95923.0,0.0001068]
[1738999274365,0.58562698,95924.0,95923.0,0.0001068]
[1738999274570,0.53869273,95924.0,95923.0,0.0001068]
[1738999275236,0.45939273,95924.0,95923.0,0.0001068]
[1738999275825,0.44865852,95924.0,95923.0,0.0001068]
[1738999285327,0.34615487,95924.0,95923.0,0.0001068]
[1738999288113,0.34615487,95924.0,95923.0,0.3064818]
[1738999288545,0.33432428,95924.0,95923.0,0.3064818]
[1738999288961,0.33811751,95924.0,95923.0,0.3064818]
[1738999289211,0.33211751,95924.0,95923.0,0.3064818]
[1738999289883,0.34011751,95924.0,95923.0,0.1501068]
[1738999290537,0.34411751,95924.0,95923.0,0.1501068]
[1738999290745,0.34011751,95924.0,95923.0,0.1501068]
[1738999290952,0.33211751,95924.0,95923.0,0.1511068]
[1738999291076,0.33211751,95924.0,95923.0,0.3074818]
[1738999291293,0.33211751,95924.0,95923.0,0.3084818]
[1738999291694,0.33211751,95924.0,95923.0,0.3074818]
[1738999292189,0.01201751,95924.0,95923.0,0.3094818]
[1738999292598,0.00022428,95924.0,95923.0,0.3094818]
[1738999293774,0.00022428,95924.0,95923.0,0.32900521]
[1738999294704,0.00022428,95924.0,95923.0,0.3094818]
[1738999296806,0.00022428,95924.0,95923.0,0.1531068]
[1738999297028,0.00022428,95924.0,95923.0,0.35334308]
[1738999297583,0.00022428,95924.0,95923.0,0.3728669]
[1738999298632,0.00022428,95924.0,95923.0,0.35334308]
[1738999301155,0.00022428,95924.0,95923.0,0.35134308]
[1738999301697,0.00022428,95924.0,95923.0,0.35234308]
[1738999302100,0.00022428,95924.0,95923.0,0.35134308]
[1738999303492,0.00022428,95924.0,95923.0,0.35234308]
[1738999303621,0.00022428,95924.0,95923.0,0.35134308]
[1738999303821,0.00022428,95924.0,95923.0,0.35034308]
[1738999304022,0.00022428,95924.0,95923.0,0.35134308]
[1738999304224,0.00022428,95924.0,95923.0,0.35234308]
[1738999312031,0.00022428,95924.0,95923.0,0.35134308]
[1738999312372,0.00022428,95924.0,95923.0,0.35234308]
[1738999313358,0.00022428,95924.0,95923.0,0.35034308]
[1738999313734,0.00022428,95924.0,95923.0,0.35134308]
[1738999314137,0.00022428,95924.0,95923.0,0.37188036]
[1738999314385,0.00022428,95924.0,95923.0,0.37088036]
[1738999314583,0.00022428,95924.0,95923.0,0.37188036]
[1738999316381,0.00022428,95924.0,95923.0,0.35034308]
[1738999316778,0.00022428,95924.0,95923.0,0.35234308]
[1738999317057,0.00022428,95924.0,95923.0,0.35134308]
[1738999317667,0.00022428,95924.0,95923.0,0.35234308]
[1738999324329,0.00022428,95924.0,95923.0,0.37189119]
[1738999327487,0.00022428,95924.0,95923.0,0.35234308]
[1738999328235,0.00022428,95924.0,95923.0,0.1521068]
[1738999328439,0.00022428,95924.0,95923.0,0.3084818]
[1738999328889,0.00022428,95924.0,95923.0,0.1521068]
[1738999329476,0.01204496,95924.0,95923.0,0.1521068]
[1738999329688,0.00022428,95924.0,95923.0,0.1521068]
[1738999330106,0.01204496,95924.0,95923.0,0.1521068]
[1738999330315,0.00022428,95924.0,95923.0,0.1521068]
[1738999330526,0.00022428,95924.0,95923.0,0.34454318]
[1738999333944,0.01204496,95924.0,95923.0,0.34454318]
[1738999351460,0.01204496,95924.0,95923.0,0.19454318]
[1738999352614,0.01204496,95924.0,95923.0,0.1584818]
[1738999352979,0.01204496,95924.0,95923.0,0.0021068]
[1738999353176,0.11454861,95924.0,95923.0,0.0021068]
[1738999353403,0.11585181,95924.0,95923.0,0.0021068]
[1738999353786,0.14825389,95924.0,95923.0,0.0021068]
[1738999354206,0.14825389,95924.0,95923.0,0.0001068]
[1738999354437,0.15195068,95924.0,95923.0,0.0001068]
[1738999357109,0.15195068,95924.0,95923.0,0.01575598]
[1738999357317,0.04944703,95924.0,95923.0,0.01575598]
[1738999357730,0.00522428,95924.0,95923.0,0.01575598]
[1738999358705,0.00022428,95924.0,95923.0,0.01575598]
[1738999358937,0.00322428,95924.0,95923.0,0.01575598]
[1738999359768,0.00322428,95924.0,95923.0,0.0001068]
[1738999360416,0.00022428,95924.0,95923.0,0.0001068]
[1738999360621,0.00122428,95924.0,95923.0,0.0001068]
[1738999360795,0.00322428,95924.0,95923.0,0.0001068]
[1738999360989,0.00122428,95924.0,95923.0,0.0001068]
[1738999361330,0.00022428,95924.0,95923.0,0.0001068]
[1738999363585,0.32032428,95924.0,95923.0,0.0001068]
[1738999363998,0.33213318,95924.0,95923.0,0.0001068]
[1738999365405,0.33413318,95924.0,95923.0,0.0001068]
[1738999365813,0.33213318,95924.0,95923.0,0.0001068]
[1738999366639,0.33513318,95924.0,95923.0,0.0001068]
[1738999367061,0.33213318,95924.0,95923.0,0.0001068]
[1738999370805,0.01203318,95924.0,95923.0,0.1564818]
[1738999371019,0.01203318,95924.0,95923.0,0.15710866]
[1738999371233,0.00022428,95924.0,95923.0,0.2034818]
[1738999372422,0.00022428,95924.0,95923.0,0.24393334]
[1738999372637,0.00022428,95924.0,95923.0,0.24493334]
[1738999373163,0.00022428,95924.0,95923.0,0.22401943]
[1738999373368,0.00022428,95924.0,95923.0,0.22501943]
[1738999373721,0.00022428,95924.0,95923.0,0.22401943]
[1738999374029,0.00022428,95924.0,95923.0,0.22501943]
[1738999384192,0.00022428,95924.0,95923.0,0.2347866]
[1738999384796,0.00022428,95924.0,95923.0,0.56919025]
[1738999385000,0.00022428,95924.0,95923.0,0.59067464]
[1738999385823,0.00022428,95924.0,95923.0,0.58967464]
[1738999386204,0.00122428,95924.0,95923.0,0.58967464]
[1738999386380,0.00222428,95924.0,95923.0,0.59067464]
[1738999386601,0.00222428,95924.0,95923.0,0.60043374]
[1738999396609,0.00222428,95924.0,95923.0,0.63943384]
[1738999398294,0.00222428,95924.0,95923.0,0.60043374]
[1738999400038,0.00222428,95924.0,95923.0,0.41603009]
[1738999400242,0.00222428,95924.0,95923.0,0.36903009]
[1738999402613,0.00222428,95924.0,95923.0,0.3084818]
[1738999404382,0.00122428,95924.0,95923.0,0.3074818]
[1738999404590,0.00111305,95924.0,95923.0,0.3084818]
[1738999405005,0.00111305,95924.0,95923.0,0.1551068]
[1738999405423,0.01293841,95924.0,95923.0,0.1551068]
[1738999405623,0.00111305,95924.0,95923.0,0.1551068]
[1738999406065,0.0129333,95924.0,95923.0,0.1551068]
[1738999406270,0.00111305,95924.0,95923.0,0.1521068]
[1738999406662,0.00011305,95924.0,95923.0,0.1531068]
[1738999406902,0.00111305,95924.0,95923.0,0.1551068]
[1738999407108,0.00111305,95924.0,95923.0,0.20710598]
[1738999407311,0.00111305,95924.0,95923.0,0.1551068]
[1738999407547,0.00111305,95924.0,95923.0,0.1531068]
[1738999407728,0.00011305,95924.0,95923.0,0.1531068]
[1738999407927,0.00011305,95924.0,95923.0,0.1521068]
[1738999408126,0.32021305,95924.0,95923.0,0.1521068]
[1738999408325,0.3320333,95924.0,95923.0,0.1541068]
[1738999411571,0.3320333,95924.0,95923.0,0.1521068]
[1738999411967,0.3320333,95924.0,95923.0,0.1501068]
[1738999412383,0.3340333,95924.0,95923.0,0.1501068]
[1738999413356,0.3340333,95924.0,95923.0,0.1511068]
[1738999414021,0.3340333,95924.0,95923.0,0.1501068]
[1738999414227,0.3320333,95924.0,95923.0,0.1501068]
[1738999414469,0.3360333,95924.0,95923.0,0.1501068]
[1738999419610,0.3340333,95924.0,95923.0,0.1501068]
[1738999419992,0.3360333,95924.0,95923.0,0.1501068]
[1738999420434,0.3340333,95924.0,95923.0,0.1501068]
[1738999420632,0.3360333,95924.0,95923.0,0.1501068]
[1738999420825,0.3340333,95924.0,95923.0,0.1501068]
[1738999421027,0.3340333,95924.0,95923.0,0.3064818]
[1738999421265,0.3360333,95924.0,95923.0,0.3064818]
[1738999423527,0.3360333,95924.0,95923.0,0.3548818]
[1738999423727,0.3360333,95924.0,95923.0,0.36535101]
[1738999423957,0.3340333,95924.0,95923.0,0.36535101]
[1738999424157,0.3320333,95924.0,95923.0,0.36535101]
[1738999424368,0.3330333,95924.0,95923.0,0.46785466]
[1738999424582,0.3340333,95924.0,95923.0,0.54595466]
[1738999424753,0.3330333,95924.0,95923.0,0.54595466]
[1738999425176,0.3330333,95924.0,95923.0,0.54795466]
[1738999425379,0.30177858,95924.0,95923.0,0.55771111]
[1738999425621,0.30177858,95924.0,95923.0,0.57871111]
[1738999425801,0.30177858,95924.0,95923.0,0.58171111]
[1738999425977,0.01182025,95924.0,95923.0,0.58171111]
[1738999426408,0.00033338,95929.0,95928.0,0.306367]
[1738999426605,0.00033338,95929.0,95928.0,0.55837065]
[1738999426985,0.00033338,95929.0,95928.0,0.57787032]
[1738999427508,0.00033338,95929.0,95928.0,0.58762677]
[1738999428034,0.00133338,95929.0,95928.0,0.58962677]
[1738999428363,0.00233338,95929.0,95928.0,0.59462677]
[1738999428562,0.00233338,95929.0,95928.0,0.61548849]
[1738999430766,0.00233338,95929.0,95928.0,0.47048517]
[1738999432216,0.00233338,95929.0,95928.0,0.46072872]
[1738999435595,0.00233338,95929.0,95928.0,0.56323237]
[1738999438128,0.00233338,95929.0,95928.0,0.57296232]
[1738999441922,0.00233338,95929.0,95928.0,0.56323237]
[1738999443817,0.00233338,95929.0,95928.0,0.57296481]
[1738999446043,0.01666667,95940.0,95939.0,0.156349]
[1738999447581,0.01666667,95940.0,95939.0,0.157349]
[1738999448080,0.01666667,95940.0,95939.0,0.16804654]
[1738999448455,0.01666667,95940.0,95939.0,0.17778608]
[1738999449239,0.01666667,95940.0,95939.0,0.17878608]
[1738999450074,0.01666667,95940.0,95939.0,0.17778608]
[1738999450289,0.01666667,95940.0,95939.0,0.17978608]
[1738999450496,0.01666667,95940.0,95939.0,0.17878608]
[1738999450871,0.01666667,95940.0,95939.0,0.18078608]
[1738999451072,0.01666667,95940.0,95939.0,0.17878608]
[1738999451277,0.01666667,95940.0,95939.0,0.16808854]
[1738999451473,0.01666667,95940.0,95939.0,0.17308854]
[1738999452266,0.01666667,95940.0,95939.0,0.17108854]
[1738999452675,0.01766667,95940.0,95939.0,0.17808854]
[1738999452885,0.01766667,95940.0,95939.0,0.17308854]
[1738999453047,0.01666667,95940.0,95939.0,0.16608854]
[1738999453231,0.01666667,95940.0,95939.0,0.17108854]
[1738999453848,0.01689095,95940.0,95939.0,0.17108854]
[1738999454193,0.01689095,95940.0,95939.0,0.17408854]
[1738999454391,0.01689095,95940.0,95939.0,0.19361334]
[1738999454698,0.01689095,95940.0,95939.0,0.19061334]
[1738999454869,0.01689095,95940.0,95939.0,0.19461334]
[1738999455073,0.01689095,95940.0,95939.0,0.18961334]
[1738999455492,0.01689095,95940.0,95939.0,0.19461334]
[1738999455867,0.01689095,95940.0,95939.0,0.18961334]
[1738999456406,0.01789095,95940.0,95939.0,0.19461334]
[1738999463432,0.01789095,95940.0,95939.0,0.19816694]
[1738999464280,0.01789095,95940.0,95939.0,0.1987933]
[1738999465075,0.01789095,95940.0,95939.0,0.19816694]
[1738999465634,0.01789095,95940.0,95939.0,0.19879329]
[1738999465969,0.01789095,95940.0,95939.0,0.23006326]
[1738999466180,0.01789095,95940.0,95939.0,0.22943691]
[1738999467057,0.01789095,95940.0,95939.0,0.24507131]
[1738999468279,0.00122428,95940.0,95939.0,0.24507131]
[1738999468506,0.00122428,95940.0,95939.0,0.21380134]
[1738999473765,0.00122428,95940.0,95939.0,0.31630499]
[1738999473894,0.00122428,95940.0,95939.0,0.34757104]
[1738999474527,0.00122428,95940.0,95939.0,0.54507104]
[1738999475616,0.00022428,95956.0,95955.0,0.306323]
[1738999476558,0.00022428,95956.0,95955.0,0.35711385]
[1738999477213,0.00022428,95956.0,95955.0,0.38448779]
[1738999477601,0.00022428,95956.0,95955.0,0.48699144]
[1738999477803,0.00022428,95956.0,95955.0,0.53649144]
[1738999478162,0.00030015,95956.0,95955.0,0.53649144]
[1738999479869,0.00030015,95956.0,95955.0,0.54505699]
[1738999480059,0.00130015,95956.0,95955.0,0.55105699]
[1738999480287,0.00130015,95956.0,95955.0,0.57216119]
[1738999480422,0.00130015,95956.0,95955.0,0.57716119]
[1738999480851,0.00130015,95956.0,95955.0,0.54589514]
[1738999484446,0.00130015,95956.0,95955.0,0.52637034]
[1738999486694,0.00130015,95956.0,95955.0,0.54937034]
[1738999488362,0.00130015,95956.0,95955.0,0.54437034]
[1738999488588,0.00130015,95956.0,95955.0,0.54937034]
[1738999488817,0.00030015,95956.0,95955.0,0.54137034]
[1738999489021,0.00030015,95956.0,95955.0,0.52573594]
[1738999489139,0.00030015,95956.0,95955.0,0.53173594]
[1738999489374,0.00030015,95956.0,95955.0,0.61263594]
[1738999489606,0.00030015,95956.0,95955.0,0.60663594]
[1738999489859,0.00030015,95956.0,95955.0,0.60763594]
[1738999490288,0.00030015,95956.0,95955.0,0.60663594]
[1738999491595,0.00030015,95956.0,95955.0,0.61263594]
[1738999492219,0.00030015,95956.0,95955.0,0.60763594]
[1738999492421,0.00030015,95956.0,95955.0,0.61163594]
[1738999492656,0.00030015,95956.0,95955.0,0.60163594]
[1738999492868,0.00030015,95956.0,95955.0,0.60763594]
[1738999493100,0.00030015,95956.0,95955.0,0.61163594]
[1738999493337,0.00030015,95956.0,95955.0,0.60163594]
[1738999493718,0.00030015,95956.0,95955.0,0.60563594]
[1738999494160,0.00030015,95956.0,95955.0,0.61163594]
[1738999503371,1.5e-07,95956.0,95955.0,0.61163594]
[1738999503880,4.3e-07,95956.0,95955.0,0.61163594]
[1738999504349,0.05574667,95968.0,95966.0,0.2487]
[1738999504640,6.7e-07,95968.0,95967.0,0.48173215]
[1738999504772,6.7e-07,95968.0,95967.0,0.48110665]
[1738999505447,6.7e-07,95968.0,95967.0,0.49084619]
[1738999506021,6.7e-07,95968.0,95967.0,0.50158735]
[1738999506838,6.7e-07,95968.0,95967.0,0.50358735]
[1738999507816,0.00100067,95968.0,95967.0,0.50358735]
[1738999507944,6.7e-07,95968.0,95967.0,0.50358735]
[1738999509440,6.7e-07,95968.0,95967.0,0.45428735]
[1738999516082,0.00022495,95968.0,95967.0,0.45428735]
[1738999516666,0.00022495,95968.0,95967.0,0.45422913]
[1738999517088,9.5e-07,95968.0,95967.0,0.45422913]
[1738999517498,9.5e-07,95968.0,95967.0,0.53232913]
[1738999517764,9.5e-07,95968.0,95967.0,0.5322179]
[1738999519114,0.00022428,95990.0,95989.0,0.306267]
[1738999519233,0.07772428,96006.0,95992.0,0.306263]
[1738999519437,0.00022428,96006.0,96001.0,0.306248]
[1738999519641,0.0006794,96002.0,96001.0,0.40875165]
[1738999520051,0.0006794,96002.0,96001.0,0.41849119]
[1738999521099,0.0006794,96002.0,96001.0,0.42349119]
[1738999521698,0.0006794,96002.0,96001.0,0.42649119]
[1738999521904,0.0006794,96002.0,96001.0,0.43692487]
[1738999522580,0.0006794,96002.0,96001.0,0.42892487]
[1738999522781,0.0006794,96002.0,96001.0,0.43492487]
[1738999523012,0.0006794,96002.0,96001.0,0.46192487]
[1738999525238,0.0006794,96002.0,96001.0,0.43892487]
[1738999525904,0.0006794,96002.0,96001.0,0.46192487]
[1738999526113,0.0006794,96002.0,96001.0,0.45792487]
[1738999526309,0.0006794,96002.0,96001.0,0.45192487]
[1738999526533,0.0006794,96002.0,96001.0,0.45692487]
[1738999526978,0.0006794,96002.0,96001.0,0.45192487]
[1738999527400,0.0006794,96002.0,96001.0,0.57912487]
[1738999527593,0.0006794,96002.0,96001.0,0.58212487]
[1738999527961,0.0006794,96002.0,96001.0,0.57912487]
[1738999528131,0.0006794,96002.0,96001.0,0.58312487]
[1738999528541,0.0006794,96002.0,96001.0,0.57912487]
[1738999528740,0.0006794,96002.0,96001.0,0.57512487]
[1738999528947,0.0006794,96002.0,96001.0,0.58412487]
[1738999529651,0.0006794,96002.0,96001.0,0.57812487]
[1738999529875,0.0006794,96002.0,96001.0,0.58412487]
[1738999530404,0.0006794,96002.0,96001.0,0.57812487]
[1738999530591,0.0006794,96002.0,96001.0,0.58712487]
[1738999531217,0.0006794,96002.0,96001.0,0.58412487]
[1738999531508,0.0006794,96002.0,96001.0,0.59012487]
[1738999531810,0.0006794,96002.0,96001.0,0.57512487]
[1738999532210,0.0006794,96002.0,96001.0,0.59012487]
[1738999532554,0.0006794,96002.0,96001.0,0.58112487]
[1738999532987,0.0006794,96002.0,96001.0,0.58312487]
[1738999533189,0.0006794,96002.0,96001.0,0.58812487]
[1738999534693,0.0006794,96002.0,96001.0,0.51002487]
[1738999535071,0.0006794,96002.0,96001.0,0.50502487]
[1738999535521,0.0006794,96002.0,96001.0,0.51002487]
[1738999536848,2.4e-07,96006.0,96005.0,0.329241]
[1738999537051,0.00013666,96006.0,96005.0,0.43174465]
[1738999537238,4.2e-07,96015.0,96010.0,0.01]
[1738999537394,4.2e-07,96015.0,96014.0,0.306227]
[1738999537597,4.2e-07,96015.0,96014.0,0.43173065]
[1738999538428,0.0826,96033.0,96016.0,0.023]
[1738999538429,0.00010834,96029.0,96016.0,0.023]
[1738999538631,0.00010834,96029.0,96028.0,0.306204]
[1738999538809,0.00010834,96029.0,96028.0,0.40870765]
[1738999539602,0.00010834,96029.0,96028.0,0.43973112]
[1738999540410,0.00010834,96029.0,96028.0,0.44273112]
[1738999540838,0.00010834,96029.0,96028.0,0.43973112]
[1738999541276,0.00010834,96029.0,96028.0,0.44473112]
[1738999541833,0.00010834,96029.0,96028.0,0.43973112]
[1738999542041,0.00010834,96029.0,96028.0,0.44273112]
[1738999542473,0.00010834,96029.0,96028.0,0.43973112]
[1738999542845,0.00010834,96029.0,96028.0,0.44873112]
[1738999543053,0.00010834,96029.0,96028.0,0.45648172]
[1738999544201,0.00010834,96029.0,96028.0,0.45048172]
[1738999544405,0.00010834,96029.0,96028.0,0.45148172]
[1738999544962,0.00010834,96029.0,96028.0,0.34897807]
[1738999546012,0.00010834,96029.0,96028.0,0.34797807]
[1738999547478,0.00010834,96029.0,96028.0,0.34897807]
[1738999547882,0.00010834,96029.0,96028.0,0.34797807]
[1738999548521,0.00010834,96029.0,96028.0,0.36744118]
[1738999551371,0.00010834,96029.0,96028.0,0.35669058]
[1738999551597,0.00010834,96029.0,96028.0,0.33540665]
[1738999552411,0.00010834,96029.0,96028.0,0.31594354]
[1738999552584,0.00010834,96029.0,96028.0,0.31616761]
[1738999552784,0.00021504,96029.0,96028.0,0.31616761]
[1738999553411,0.00021504,96029.0,96028.0,0.32016761]
[1738999553586,0.00021504,96029.0,96028.0,0.31616761]
[1738999554219,0.00021504,96029.0,96028.0,0.31916761]
[1738999554597,0.00021504,96029.0,96028.0,0.31616761]
[1738999554963,0.00021504,96029.0,96028.0,0.32016761]
[1738999555192,0.00021504,96029.0,96028.0,0.32116761]
[1738999555421,0.00021504,96029.0,96028.0,0.32016761]
[1738999555884,0.00021504,96029.0,96028.0,0.32216761]
[1738999557862,0.00021504,96029.0,96028.0,0.31242807]
[1738999558427,0.00021504,96029.0,96028.0,0.32217751]
[1738999560566,0.00021504,96029.0,96028.0,0.31817751]
[1738999560984,0.00021504,96029.0,96028.0,0.32217751]
[1738999561361,0.00021504,96029.0,96028.0,0.32017751]
[1738999561769,0.00021504,96029.0,96028.0,0.31817751]
[1738999561972,0.00021504,96029.0,96028.0,0.31617751]
[1738999562171,0.00021504,96029.0,96028.0,0.32017751]
[1738999562373,0.00021504,96029.0,96028.0,0.32317751]
[1738999565711,0.00021504,96029.0,96028.0,0.42268116]
[1738999565918,0.00021504,96029.0,96028.0,0.42468116]
[1738999566463,0.00021504,96029.0,96028.0,0.32217751]
[1738999566641,0.00021504,96029.0,96028.0,0.31817751]
[1738999566854,0.00021504,96029.0,96028.0,0.32217751]
[1738999567599,0.00021504,96029.0,96028.0,0.31817751]
[1738999567824,0.00021504,96029.0,96028.0,0.32217751]
[1738999568255,0.00021504,96029.0,96028.0,0.42268116]
[1738999568454,0.00021504,96029.0,96028.0,0.49168116]
[1738999568660,0.00021504,96029.0,96028.0,0.49468116]
[1738999569574,0.00021504,96029.0,96028.0,0.48768116]
[1738999569967,0.00021504,96029.0,96028.0,0.48868116]
[1738999570273,0.00021504,96029.0,96028.0,0.48768116]
[1738999571139,0.00021504,96029.0,96028.0,0.56748116]
[1738999571545,0.00121504,96029.0,96028.0,0.56748116]
[1738999573915,0.00121504,96029.0,96028.0,0.57148116]
[1738999574460,0.00121504,96029.0,96028.0,0.56748116]
[1738999574648,0.00121504,96029.0,96028.0,0.57148116]
[1738999574846,0.0811,96063.0,96030.0,0.0787]
[1738999575049,0.0812364,96063.0,96062.0,0.156149]
[1738999575247,0.03257182,96063.0,96062.0,0.156149]
[1738999575574,0.04456963,96063.0,96062.0,0.156149]
[1738999577212,0.04456963,96063.0,96060.0,0.208201]
[1738999577213,0.0818,96062.0,96060.0,0.208201]
[1738999577548,0.0818,96062.0,96061.0,0.15615]
[1738999579076,0.0828,96062.0,96061.0,0.13948333]
[1738999580021,0.08270796,96062.0,96061.0,0.13948333]
[1738999581686,0.08170796,96062.0,96061.0,0.13948333]
[1738999582091,0.08270796,96062.0,96061.0,0.13948333]
[1738999582295,0.08170796,96062.0,96061.0,0.13948333]
[1738999582777,0.08270796,96062.0,96061.0,0.13948333]
[1738999582982,0.08170796,96062.0,96061.0,0.13948333]
[1738999583405,0.08270796,96062.0,96061.0,0.13948333]
[1738999587721,0.08281476,96062.0,96061.0,0.13948333]
[1738999587929,0.0011068,96062.0,96061.0,0.13948333]
[1738999589192,0.0001068,96062.0,96061.0,0.13948333]
[1738999589506,0.0011068,96062.0,96061.0,0.13948333]
[1738999589715,0.0011068,96062.0,96061.0,0.14984695]
[1738999590171,0.0011068,96062.0,96061.0,0.13948333]
[1738999593795,0.0011068,96062.0,96061.0,0.15615]
[1738999594823,0.0001068,96062.0,96061.0,0.15615]
[1738999595239,0.0011068,96062.0,96061.0,0.15615]
[1738999597695,0.0011068,96062.0,96061.0,0.16589599]
[1738999597900,0.0001068,96062.0,96061.0,0.16589599]
[1738999598307,0.0011068,96062.0,96061.0,0.16589599]
[1738999598552,0.0001068,96062.0,96061.0,0.16589599]
[1738999598954,0.0011068,96062.0,96061.0,0.16612006]
[1738999599551,0.0001068,96062.0,96061.0,0.16612006]
[1738999601104,0.0011068,96062.0,96061.0,0.16612006]
[1738999601282,0.0001068,96062.0,96061.0,0.16612006]
[1738999601695,0.0011068,96062.0,96061.0,0.16612006]
[1738999602903,0.0011068,96062.0,96061.0,0.16712006]
[1738999604425,0.0001068,96062.0,96061.0,0.16712006]
[1738999605579,0.0001068,96062.0,96061.0,0.16612006]
[1738999605780,0.0001068,96062.0,96061.0,0.16712006]
[1738999605982,0.0001068,96062.0,96061.0,0.16812006]
[1738999606216,0.0001068,96062.0,96061.0,0.31812006]
[1738999606425,0.0001068,96062.0,96061.0,0.31712006]
[1738999606756,0.0001068,96062.0,96061.0,0.32012006]
[1738999607554,0.0001068,96062.0,96061.0,0.40232006]
[1738999607966,0.0001068,96062.0,96061.0,0.50482371]
[1738999608348,0.0001068,96062.0,96061.0,0.54992371]
[1738999615022,0.0001068,96062.0,96061.0,0.46772371]
[1738999615975,0.0001068,96062.0,96061.0,0.36522006]
[1738999616146,0.0001068,96062.0,96061.0,0.32012006]
[1738999617146,0.0001068,96062.0,96061.0,0.31912006]
[1738999617489,0.0001068,96062.0,96061.0,0.44312006]
[1738999617676,0.0001068,96062.0,96061.0,0.36832006]
[1738999618388,0.0001068,96062.0,96061.0,0.36632006]
[1738999618748,0.0001068,96062.0,96061.0,0.36932006]
[1738999619347,0.0001068,96062.0,96061.0,0.36832006]
[1738999620807,0.0001068,96062.0,96061.0,0.36932006]
[1738999621449,0.0001068,96062.0,96061.0,0.36632006]
[1738999621670,0.0001068,96062.0,96061.0,0.36532006]
[1738999621869,0.0001068,96062.0,96061.0,0.36932006]
[1738999622073,0.0001068,96062.0,96061.0,0.37132006]
[1738999622297,0.0001068,96062.0,96061.0,0.36932006]
[1738999622650,0.0001068,96062.0,96061.0,0.37132006]
[1738999622905,0.0001068,96062.0,96061.0,0.36732006]
[1738999624287,0.0001068,96062.0,96061.0,0.36532006]
[1738999624502,0.0001068,96062.0,96061.0,0.36632006]
[1738999624700,0.0001068,96062.0,96061.0,0.36932006]
[1738999624898,0.0001068,96062.0,96061.0,0.36532006]
[1738999625174,0.0001068,96062.0,96061.0,0.37032006]
[1738999625398,0.0001068,96062.0,96061.0,0.37332006]
[1738999625617,0.0001068,96062.0,96061.0,0.47282371]
[1738999625992,0.0001068,96062.0,96061.0,0.47582371]
[1738999626168,0.0001068,96062.0,96061.0,0.47082371]
[1738999626388,0.0001068,96062.0,96061.0,0.46782371]
[1738999627659,0.0001068,96062.0,96061.0,0.47082371]
[1738999627868,0.0001068,96062.0,96061.0,0.47582371]
[1738999628161,0.0001068,96062.0,96061.0,0.47282371]
[1738999628398,0.0001068,96062.0,96061.0,0.47582371]
[1738999628581,0.0001068,96062.0,96061.0,0.46782371]
[1738999628908,0.0001068,96062.0,96061.0,0.47582371]
[1738999629363,0.0001068,96062.0,96061.0,0.47082371]
[1738999629770,0.0001068,96062.0,96061.0,0.47282371]
[1738999630787,0.0001068,96062.0,96061.0,0.46782371]
[1738999631137,0.0001068,96062.0,96061.0,0.47282371]
[1738999631337,0.0001068,96062.0,96061.0,0.47582371]
[1738999631554,0.0001068,96062.0,96061.0,0.47282371]
[1738999631967,0.0001068,96062.0,96061.0,0.47082371]
[1738999632220,0.0001068,96062.0,96061.0,0.46782371]
[1738999632528,0.0001068,96062.0,96061.0,0.46982371]
[1738999632753,0.0001068,96062.0,96061.0,0.47082371]
[1738999633885,0.0001068,96062.0,96061.0,0.46882371]
[1738999634081,0.00022428,96064.0,96063.0,0.156147]
[1738999634300,0.00022428,96064.0,96063.0,0.40865065]
[1738999635690,0.00022428,96064.0,96063.0,0.41839664]
[1738999635893,0.00022428,96064.0,96063.0,0.42339664]
[1738999636544,0.00022428,96064.0,96063.0,0.42639664]
[1738999637511,0.00022428,96064.0,96063.0,0.44697646]
[1738999645193,0.00022428,96064.0,96063.0,0.44197646]
[1738999645423,0.00022428,96064.0,96063.0,0.43897646]
[1738999645629,0.00022428,96064.0,96063.0,0.43997646]
[1738999647059,0.00022428,96064.0,96063.0,0.43897646]
[1738999647555,0.00022428,96064.0,96063.0,0.43997646]
[1738999650800,0.00022428,96064.0,96063.0,0.43897646]
[1738999651007,0.00022428,96064.0,96063.0,0.43997646]
[1738999653285,0.00022428,96064.0,96063.0,0.43897646]
[1738999653437,0.00022428,96064.0,96063.0,0.43997646]
[1738999679026,0.00022428,96064.0,96063.0,0.46297646]
[1738999680541,0.00022428,96064.0,96063.0,0.43997646]
[1738999681144,0.00022428,96064.0,96063.0,0.33747281]
[1738999681348,0.00022428,96064.0,96063.0,0.16689299]
[1738999681583,0.08082428,96064.0,96063.0,0.16689299]
[1738999681900,0.08082428,96064.0,96063.0,0.31689299]
[1738999682101,0.08082428,96064.0,96063.0,0.31589299]
[1738999682570,0.08182428,96064.0,96063.0,0.31589299]
[1738999682909,0.08082428,96064.0,96063.0,0.31589299]
[1738999683088,0.08082428,96064.0,96063.0,0.32089299]
[1738999683701,0.08082428,96064.0,96063.0,0.31789299]
[1738999683917,0.08082428,96064.0,96063.0,0.31889299]
[1738999684980,0.12842428,96064.0,96063.0,0.31889299]
[1738999685534,0.12842428,96064.0,96063.0,0.31989299]
[1738999686326,0.12842428,96064.0,96063.0,0.31689299]
[1738999686931,0.12842428,96064.0,96063.0,0.31589299]
[1738999687339,0.12942428,96064.0,96063.0,0.31589299]
[1738999688573,0.12842428,96064.0,96063.0,0.31589299]
[1738999688933,0.12942428,96064.0,96063.0,0.31589299]